fUST/lending_fUST_20250722
["ID","MTS","AMOUNT","RATE_DAILY","PERIOD"]
[374004144,1753177832549,-328.73,0.00016862,2]
[374004146,1753177832558,-460.0,0.00016862,2]
[374004148,1753177832567,-1232.02,0.00016862,2]
[374004150,1753177832576,-460.0,0.00016862,2]
[374004152,1753177832585,-460.35,0.00016862,2]
[374004154,1753177832596,-460.0,0.00016862,2]
[374004155,1753177832606,-868.26,0.00016862,2]
[374004157,1753177832616,-460.0,0.00016862,2]
[374004159,1753177832626,-460.0,0.00016862,2]
[374004161,1753177832635,-460.0,0.00016862,2]
[374004163,1753177832645,-460.0,0.00016862,2]
[374004165,1753177832654,-460.0,0.00016862,2]
[374004167,1753177832664,-460.0,0.00016862,2]
[374004169,1753177832673,-460.0,0.00016862,2]
[374004171,1753177832683,-358.93024868,0.00016862,2]
[374004173,1753177832692,-460.0,0.00016862,2]
[374004175,1753177832702,-460.0,0.00016862,2]
[374004177,1753177832711,-460.0,0.00016862,2]
[374004179,1753177832720,-460.0,0.00016862,2]
[374004181,1753177832730,-678.52,0.00016862,2]
[374004183,1753177832739,-460.0,0.00016862,2]
[374004185,1753177832749,-460.0,0.00016862,2]
[374004187,1753177832758,-460.0,0.00016862,2]
[374004189,1753177832768,-460.0,0.00016862,2]
[374004191,1753177832778,-460.0,0.00016862,2]
[374004193,1753177832787,-460.0,0.00016862,2]
[374004195,1753177832797,-460.0,0.00016862,2]
[374004198,1753177832807,-274.71771532,0.00016862,2]
[374004199,1753177832816,-460.0,0.00016862,2]
[374004201,1753177832825,-460.0,0.00016862,2]
[374004203,1753177832835,-1392.11,0.00016862,2]
[374004205,1753177832846,-460.0,0.00016862,2]
[374004207,1753177832856,-460.0,0.00016862,2]
[374004210,1753177832865,-460.0,0.00016862,2]
[374004211,1753177832875,-555.89589733,0.00016862,2]
[374004214,1753177832885,-460.0,0.00016862,2]
[374004216,1753177832894,-460.0,0.00016863,2]
[374004218,1753177832903,-460.0,0.00016863,2]
[374004220,1753177832913,-460.0,0.00016863,2]
[374004222,1753177832923,-460.0,0.00016863,2]
[374004223,1753177832932,-460.0,0.00016863,2]
[374004226,1753177832942,-460.0,0.00016863,2]
[374004228,1753177832951,-460.0,0.00016863,2]
[374004230,1753177832960,-460.0,0.00016863,2]
[374004231,1753177832969,-460.0,0.00016863,2]
[374004234,1753177832980,-460.0,0.00016863,2]
[374004235,1753177832989,-591.63,0.00016863,2]
[374004238,1753177832999,-460.0,0.00016863,2]
[374004240,1753177833008,-460.0,0.00016863,2]
[374004242,1753177833017,-460.0,0.00016863,2]
[374004244,1753177833027,-460.0,0.00016863,2]
[374004246,1753177833037,-460.0,0.00016863,2]
[374004248,1753177833047,-460.0,0.00016863,2]
[374004250,1753177833057,-460.0,0.00016863,2]
[374004252,1753177833066,-463.87222428,0.00016863,2]
[374004254,1753177833076,-650.9,0.00016863,2]
[374004256,1753177833086,-460.0,0.00016863,2]
[374004258,1753177833095,-460.0,0.00016863,2]
[374004260,1753177833105,-460.0,0.00016863,2]
[374004262,1753177833115,-460.0,0.00016863,2]
[374004264,1753177833124,-460.0,0.00016863,2]
[374004266,1753177833138,-460.0,0.00016863,2]
[374004268,1753177833148,-1552.13,0.00016863,2]
[374004270,1753177833158,-834.77,0.00016863,2]
[374004272,1753177833168,-460.0,0.00016864,2]
[374004274,1753177833178,-460.0,0.00016864,2]
[374004276,1753177833188,-910.97,0.00016864,2]
[374004277,1753177833198,-669.08,0.00016865,2]
[374004278,1753177833208,-460.0,0.00016865,2]
[374004279,1753177833219,-460.0,0.00016865,2]
[374004280,1753177833229,-460.0,0.00016865,2]
[374004281,1753177833239,-602.33,0.00016865,2]
[374004282,1753177833249,-2606.37,0.00016865,2]
[374004283,1753177833259,-349.37165179,0.00017135,2]
[374004284,1753177833273,-149.05834821,0.00017135,2]
[374004285,1753177833283,-460.0,0.00017136,2]
[374004286,1753177833293,-465.84435024,0.00017136,2]
[374004287,1753177833302,-464.38507739,0.00017136,2]
[374004288,1753177833313,-387.4466593,0.00017136,2]
[374004631,1753177838942,-460.0,0.00016862,2]
[374004633,1753177838952,-653.97,0.00016862,2]
[374004635,1753177838962,-72.5533407,0.00017136,2]
[374004637,1753177838971,-460.0,0.00017136,2]
[374004639,1753177838981,-460.0,0.00017136,2]
[374004641,1753177838991,-460.0,0.00017136,2]
[374004643,1753177839001,-460.0,0.00017136,2]
[374004645,1753177839011,-460.0,0.00017136,2]
[374004647,1753177839021,-460.0,0.00017136,2]
[374004649,1753177839031,-460.0,0.00017136,2]
[374004651,1753177839041,-460.0,0.00017136,2]
[374004653,1753177839051,-323.21040052,0.00017136,2]
[374004655,1753177839060,-460.0,0.00017136,2]
[374004657,1753177839070,-460.0,0.00017136,2]
[374004659,1753177839079,-460.0,0.00017136,2]
[374004661,1753177839089,-460.0,0.00017136,2]
[374004664,1753177839100,-460.0,0.00017136,2]
[374004667,1753177839118,-460.0,0.00017136,2]
[374004669,1753177839127,-460.0,0.00017136,2]
[374004672,1753177839141,-1232.02,0.00017136,2]
[374004674,1753177839150,-460.0,0.00017136,2]
[374004675,1753177839159,-460.35,0.00017136,2]
[374004677,1753177839168,-868.26,0.00017136,2]
[374004680,1753177839181,-460.0,0.00017136,2]
[374004682,1753177839190,-460.0,0.00017136,2]
[374004684,1753177839201,-460.0,0.00017136,2]
[374004685,1753177839211,-460.0,0.00017136,2]
[374004686,1753177839221,-460.0,0.00017136,2]
[374004688,1753177839230,-460.0,0.00017136,2]
[374004689,1753177839240,-460.0,0.00017136,2]
[374004691,1753177839250,-555.8,0.00017136,2]
[374004693,1753177839260,-708.02,0.00017136,2]
[374004695,1753177839269,-678.52,0.00017136,2]
[374004697,1753177839279,-460.0,0.00017136,2]
[374004699,1753177839289,-460.0,0.00017136,2]
[374004701,1753177839298,-460.0,0.00017136,2]
[374004702,1753177839308,-460.0,0.00017136,2]
[374004703,1753177839317,-460.0,0.00017136,2]
[374004704,1753177839327,-460.0,0.00017136,2]
[374004705,1753177839337,-460.0,0.00017136,2]
[374004706,1753177839347,-1392.11,0.00017136,2]
[374004707,1753177839360,-460.0,0.00017136,2]
[374004708,1753177839369,-460.0,0.00017136,2]
[374004709,1753177839379,-460.0,0.00017136,2]
[374004710,1753177839389,-460.0,0.00017136,2]
[374004711,1753177839399,-460.0,0.00017136,2]
[374004712,1753177839408,-653.97,0.00017136,2]
[374004713,1753177839418,-460.0,0.00017137,2]
[374004714,1753177839427,-460.0,0.00017137,2]
[374004715,1753177839437,-460.0,0.00017137,2]
[374004716,1753177839446,-460.0,0.00017137,2]
[374004717,1753177839456,-460.0,0.00017137,2]
[374004718,1753177839465,-460.0,0.00017137,2]
[374004719,1753177839475,-460.0,0.00017137,2]
[374004720,1753177839486,-460.0,0.00017137,2]
[374004721,1753177839496,-460.0,0.00017137,2]
[374004722,1753177839506,-460.0,0.00017137,2]
[374004723,1753177839515,-1552.13,0.00017137,2]
[374004724,1753177839525,-834.77,0.00017137,2]
[374004725,1753177839535,-460.0,0.00017138,2]
[374004726,1753177839545,-460.0,0.00017138,2]
[374004727,1753177839563,-910.97,0.00017138,2]
[374004728,1753177839573,-669.08,0.00017139,2]
[374004730,1753177839692,-277.40630608,0.00017139,2]
[374004731,1753177839705,-460.0,0.00017139,2]
[374004732,1753177839716,-460.0,0.00017139,2]
[374004733,1753177839725,-602.33,0.00017139,2]
[374004734,1753177839735,-2606.37,0.00017139,2]
[374004735,1753177839746,-500.0,0.0001739,2]
[374004736,1753177839759,-500.0,0.0001739,2]
[374004737,1753177839768,-500.69098951,0.0001739,2]
[374004738,1753177839778,-502.85194681,0.0001739,2]
[374004739,1753177839787,-501.28405146,0.0001739,2]
[374004740,1753177839797,-500.0,0.0001739,2]
[374004741,1753177839807,-500.0,0.0001739,2]
[374004742,1753177839817,-498.43,0.00017409,2]
[374004743,1753177839827,-460.0,0.0001741,2]
[374004744,1753177839837,-460.0,0.0001741,2]
[374004745,1753177839846,-460.0,0.0001741,2]
[374004746,1753177839858,-460.0,0.0001741,2]
[374004747,1753177839868,-460.0,0.0001741,2]
[374004748,1753177839878,-460.0,0.0001741,2]
[374004749,1753177839888,-317.6,0.0001741,2]
[374004750,1753177839898,-460.0,0.0001741,2]
[374004751,1753177839909,-460.0,0.0001741,2]
[374004752,1753177839919,-460.0,0.0001741,2]
[374004753,1753177839929,-1232.02,0.0001741,2]
[374004754,1753177839939,-460.0,0.0001741,2]
[374004755,1753177839949,-460.35,0.0001741,2]
[374004756,1753177839958,-868.26,0.0001741,2]
[374004757,1753177839968,-460.0,0.0001741,2]
[374004758,1753177839977,-460.0,0.0001741,2]
[374004759,1753177839987,-460.0,0.0001741,2]
[374004760,1753177839997,-460.0,0.0001741,2]
[374004762,1753177840007,-166.88,0.0001741,2]
[374004763,1753177840016,-708.02,0.0001741,2]
[374004764,1753177840026,-678.52,0.0001741,2]
[374004765,1753177840036,-460.0,0.0001741,2]
[374004766,1753177840046,-460.0,0.0001741,2]
[374004767,1753177840055,-460.0,0.0001741,2]
[374004768,1753177840066,-460.0,0.0001741,2]
[374004769,1753177840075,-460.0,0.0001741,2]
[374004770,1753177840085,-460.0,0.0001741,2]
[374004771,1753177840094,-1392.11,0.0001741,2]
[374004772,1753177840106,-460.0,0.0001741,2]
[374004773,1753177840115,-460.0,0.0001741,2]
[374004774,1753177840126,-460.0,0.0001741,2]
[374004775,1753177840140,-460.0,0.0001741,2]
[374004776,1753177840150,-653.97,0.0001741,2]
[374004777,1753177840159,-471.69774941,0.00017411,2]
[374004778,1753177840170,-461.15574708,0.00017411,2]
[374004779,1753177840180,-460.0,0.00017411,2]
[374004780,1753177840190,-460.0,0.00017411,2]
[374004781,1753177840200,-460.0,0.00017411,2]
[374004782,1753177840211,-460.0,0.00017411,2]
[374004784,1753177840220,-460.0,0.00017411,2]
[374004786,1753177840230,-460.0,0.00017411,2]
[374004788,1753177840241,-1552.13,0.00017411,2]
[374004791,1753177840251,-834.77,0.00017411,2]
[374004793,1753177840261,-460.0,0.00017412,2]
[374004795,1753177840271,-460.0,0.00017412,2]
[374004797,1753177840280,-910.97,0.00017412,2]
[374004798,1753177840290,-669.08,0.00017413,2]
[374004800,1753177840300,-460.0,0.00017413,2]
[374004802,1753177840309,-460.0,0.00017413,2]
[374004804,1753177840319,-602.33,0.00017413,2]
[374004806,1753177840328,-2606.37,0.00017413,2]
[374004807,1753177840338,-500.0,0.00017495,2]
[374004809,1753177840348,-502.0146786,0.00017495,2]
[374004811,1753177840361,-355.35840515,0.0001757,2]
[374004813,1753177840371,-503.50332979,0.00017578,2]
[374004815,1753177840380,-500.0,0.00017588,2]
[374004817,1753177840390,-500.0,0.00017588,2]
[374004819,1753177840400,-500.0,0.00017619,2]
[374004821,1753177840411,-500.0,0.00017619,2]
[374004823,1753177840423,-263.50635675,0.00017619,2]
[374004825,1753177840433,-500.0,0.00017637,2]
[374004827,1753177840443,-500.0,0.00017637,2]
[374004829,1753177840452,-500.0,0.00017637,2]
[374004831,1753177840463,-500.0,0.00017637,2]
[374004833,1753177840473,-327.25633855,0.00017637,2]
[374004835,1753177840482,-230.49039423,0.00017637,2]
[374004837,1753177840491,-500.0,0.00017637,2]
[374004838,1753177840501,-486.69610021,0.00017637,2]
[374004839,1753177840510,-500.0,0.00017637,2]
[374004840,1753177840520,-500.0,0.00017637,2]
[374004841,1753177840529,-500.47415245,0.00017637,2]
[374004842,1753177840539,-500.0,0.00017637,2]
[374004843,1753177840550,-320.76348213,0.00017637,2]
[374004844,1753177840559,-157.48194092,0.00017637,2]
[374004845,1753177840569,-501.5848709,0.00017637,2]
[374004846,1753177840579,-500.0,0.00017637,2]
[374004847,1753177840588,-500.86521193,0.00017637,2]
[374004848,1753177840598,-500.0,0.00017637,2]
[374004849,1753177840612,-500.0,0.00017637,2]
[374004850,1753177840622,-212.29215106,0.00017637,2]
[374004851,1753177840632,-323.29,0.00017674,3]
[374004852,1753177840642,-161.64,0.00017674,3]
[374004853,1753177840652,-484.97,0.00017674,3]
[374004854,1753177840662,-176.34,0.00017677,3]
[374004855,1753177840671,-498.43,0.00017683,2]
[374004856,1753177840681,-178.59315011,0.00017684,2]
[374004857,1753177840691,-198.06410129,0.00017684,2]
[374004858,1753177840700,-166.81022348,0.00017684,2]
[374004859,1753177840710,-460.0,0.00017684,2]
[374004860,1753177840719,-460.0,0.00017684,2]
[374004861,1753177840729,-460.0,0.00017684,2]
[374004862,1753177840738,-460.0,0.00017684,2]
[374004863,1753177840748,-1232.02,0.00017684,2]
[374004864,1753177840757,-460.0,0.00017684,2]
[374004865,1753177840768,-460.35,0.00017684,2]
[374004866,1753177840778,-868.26,0.00017684,2]
[374004867,1753177840787,-460.0,0.00017684,2]
[374004868,1753177840798,-460.0,0.00017684,2]
[374004869,1753177840809,-460.0,0.00017684,2]
[374004870,1753177840818,-708.02,0.00017684,2]
[374004871,1753177840828,-460.0,0.00017684,2]
[374004872,1753177840837,-460.0,0.00017684,2]
[374004873,1753177840847,-460.0,0.00017684,2]
[374004874,1753177840862,-460.0,0.00017684,2]
[374004875,1753177840872,-1392.11,0.00017684,2]
[374004876,1753177840882,-460.0,0.00017684,2]
[374004877,1753177840891,-460.0,0.00017684,2]
[374004878,1753177840901,-460.0,0.00017684,2]
[374004879,1753177840910,-460.0,0.00017684,2]
[374004880,1753177840920,-653.97,0.00017684,2]
[374004881,1753177840929,-460.0,0.00017685,2]
[374004882,1753177840939,-460.0,0.00017685,2]
[374004883,1753177840949,-460.0,0.00017685,2]
[374004884,1753177840958,-209.68015387,0.00017685,2]
[374004885,1753177840968,-460.0,0.00017685,2]
[374004886,1753177840977,-1552.13,0.00017685,2]
[374004887,1753177840987,-834.77,0.00017685,2]
[374004888,1753177840996,-460.0,0.00017686,2]
[374004889,1753177841006,-460.0,0.00017686,2]
[374004890,1753177841016,-910.97,0.00017686,2]
[374004891,1753177841026,-669.08,0.00017687,2]
[374004892,1753177841038,-460.0,0.00017687,2]
[374004893,1753177841051,-602.33,0.00017687,2]
[374004894,1753177841065,-2606.37,0.00017687,2]
[374004895,1753177841077,-3301.13242459,0.000179,2]
[374004896,1753177841089,-500.0,0.00017938,2]
[374004897,1753177841102,-498.43,0.00017957,2]
[374004898,1753177841116,-460.0,0.00017958,2]
[374004899,1753177841126,-1232.02,0.00017958,2]
[374004900,1753177841142,-460.0,0.00017958,2]
[374004901,1753177841154,-460.35,0.00017958,2]
[374004902,1753177841166,-868.26,0.00017958,2]
[374004903,1753177841180,-460.0,0.00017958,2]
[374004904,1753177841191,-460.0,0.00017958,2]
[374004905,1753177841203,-460.0,0.00017958,2]
[374004906,1753177841216,-708.02,0.00017958,2]
[374004907,1753177841227,-460.0,0.00017958,2]
[374004908,1753177841240,-460.0,0.00017958,2]
[374004909,1753177841251,-460.0,0.00017958,2]
[374004910,1753177841263,-460.0,0.00017958,2]
[374004911,1753177841274,-1392.11,0.00017958,2]
[374004912,1753177841287,-460.0,0.00017958,2]
[374004913,1753177841300,-460.0,0.00017958,2]
[374004914,1753177841312,-491.48036298,0.00017958,2]
[374004915,1753177841324,-460.0,0.00017958,2]
[374004916,1753177841336,-460.0,0.00017959,2]
[374004917,1753177841347,-460.0,0.00017959,2]
[374004918,1753177841364,-460.0,0.00017959,2]
[374004919,1753177841375,-1552.13,0.00017959,2]
[374004920,1753177841386,-834.77,0.00017959,2]
[374004921,1753177841398,-460.0,0.0001796,2]
[374004922,1753177841410,-460.0,0.0001796,2]
[374004923,1753177841422,-910.97,0.0001796,2]
[374004924,1753177841434,-669.08,0.00017961,2]
[374004925,1753177841445,-460.0,0.00017961,2]
[374004926,1753177841456,-602.33,0.00017961,2]
[374004927,1753177841466,-2606.37,0.00017961,2]
[374004928,1753177841476,-503.14242823,0.00018043,2]
[374004929,1753177841486,-933.96077908,0.00018132,2]
[374004930,1753177841500,-160.0,0.00018158,2]
[374004931,1753177841511,-500.0,0.00018167,2]
[374004932,1753177841522,-500.0,0.00018167,2]
[374004933,1753177841534,-3301.13242443,0.00018176,2]
[374004934,1753177841545,-500.0,0.00018185,2]
[374004935,1753177841557,-548.56607355,0.00018185,2]
[374004936,1753177841569,-500.0,0.00018185,2]
[374004937,1753177841580,-500.0,0.00018185,2]
[374004938,1753177841592,-500.0,0.00018185,2]
[374004939,1753177841605,-350.74554853,0.00018185,2]
[374004940,1753177841618,-498.43,0.00018231,2]
[374004941,1753177841630,-1232.02,0.00018232,2]
[374004942,1753177841642,-460.0,0.00018232,2]
[374004943,1753177841655,-460.35,0.00018232,2]
[374004944,1753177841666,-868.26,0.00018232,2]
[374004945,1753177841677,-460.0,0.00018232,2]
[374004946,1753177841687,-460.0,0.00018232,2]
[374004947,1753177841697,-460.0,0.00018232,2]
[374004948,1753177841707,-708.02,0.00018232,2]
[374004949,1753177841718,-460.0,0.00018232,2]
[374004950,1753177841729,-460.0,0.00018232,2]
[374004951,1753177841741,-460.0,0.00018232,2]
[374004952,1753177841754,-460.0,0.00018232,2]
[374004953,1753177841766,-1392.11,0.00018232,2]
[374004954,1753177841778,-460.0,0.00018232,2]
[374004955,1753177841790,-460.0,0.00018232,2]
[374004956,1753177841800,-460.0,0.00018232,2]
[374004957,1753177841811,-460.0,0.00018233,2]
[374004958,1753177841822,-1552.13,0.00018233,2]
[374004959,1753177841833,-834.77,0.00018233,2]
[374004960,1753177841843,-383.86,0.00018234,2]
[374004961,1753177841858,-460.0,0.00018234,2]
[374004962,1753177841870,-910.97,0.00018234,2]
[374004963,1753177841880,-669.08,0.00018235,2]
[374004964,1753177841890,-460.0,0.00018235,2]
[374004965,1753177841901,-602.33,0.00018235,2]
[374004966,1753177841912,-2606.37,0.00018235,2]
[374004967,1753177841922,-420.0,0.00018419,2]
[374004968,1753177841932,-420.0,0.00018419,2]
[374004969,1753177841944,-3301.13242443,0.00018452,2]
[374004970,1753177841954,-280.0,0.00018479,2]
[374004971,1753177841965,-498.43,0.00018505,2]
[374004972,1753177841975,-1232.02,0.00018506,2]
[374004973,1753177841986,-460.0,0.00018506,2]
[374004974,1753177841996,-460.35,0.00018506,2]
[374004975,1753177842007,-868.26,0.00018506,2]
[374004976,1753177842017,-460.0,0.00018506,2]
[374004977,1753177842027,-460.0,0.00018506,2]
[374004978,1753177842038,-460.0,0.00018506,2]
[374004979,1753177842049,-708.02,0.00018506,2]
[374004980,1753177842059,-460.0,0.00018506,2]
[374004981,1753177842070,-460.0,0.00018506,2]
[374004982,1753177842080,-460.0,0.00018506,2]
[374004983,1753177842092,-460.0,0.00018506,2]
[374004984,1753177842103,-1392.11,0.00018506,2]
[374004985,1753177842116,-460.0,0.00018506,2]
[374004986,1753177842126,-460.0,0.00018506,2]
[374004987,1753177842140,-460.0,0.00018507,2]
[374004988,1753177842151,-1552.13,0.00018507,2]
[374004989,1753177842161,-834.77,0.00018507,2]
[374004990,1753177842171,-460.0,0.00018508,2]
[374004991,1753177842183,-910.97,0.00018508,2]
[374004992,1753177842194,-669.08,0.00018509,2]
[374004993,1753177842204,-460.0,0.00018509,2]
[374004994,1753177842216,-602.33,0.00018509,2]
[374004995,1753177842227,-2606.37,0.00018509,2]
[374004996,1753177842238,-260.0,0.00018706,2]
[374004997,1753177842248,-3301.13242443,0.00018728,2]
[374004998,1753177842258,-498.43,0.00018779,2]
[374004999,1753177842269,-1232.02,0.0001878,2]
[374005000,1753177842279,-460.0,0.0001878,2]
[374005001,1753177842290,-460.35,0.0001878,2]
[374005002,1753177842301,-868.26,0.0001878,2]
[374005003,1753177842311,-460.0,0.0001878,2]
[374005004,1753177842322,-460.0,0.0001878,2]
[374005006,1753177842333,-460.0,0.0001878,2]
[374005007,1753177842343,-708.02,0.0001878,2]
[374005008,1753177842354,-460.0,0.0001878,2]
[374005009,1753177842367,-460.0,0.0001878,2]
[374005011,1753177842378,-257.56,0.0001878,2]
[374005013,1753177842389,-460.0,0.0001878,2]
[374005015,1753177842399,-1392.11,0.0001878,2]
[374005017,1753177842410,-460.0,0.0001878,2]
[374005019,1753177842420,-460.0,0.0001878,2]
[374005020,1753177842430,-460.0,0.00018781,2]
[374005021,1753177842440,-1552.13,0.00018781,2]
[374005022,1753177842450,-834.77,0.00018781,2]
[374005023,1753177842461,-460.0,0.00018782,2]
[374005025,1753177842472,-910.97,0.00018782,2]
[374005027,1753177842482,-669.08,0.00018783,2]
[374005028,1753177842493,-460.0,0.00018783,2]
[374005029,1753177842504,-602.33,0.00018783,2]
[374005030,1753177842514,-2606.37,0.00018783,2]
[374005031,1753177842525,-500.0,0.00018846,2]
[374005032,1753177842535,-500.0,0.00018846,2]
[374005033,1753177842545,-500.0,0.00018846,2]
[374005035,1753177842556,-160.0,0.00018847,2]
[374005037,1753177842567,-160.0,0.00018847,2]
[374005039,1753177842579,-160.0,0.00018847,2]
[374005040,1753177842589,-160.0,0.00018847,2]
[374005051,1753177842731,-160.0,0.00018847,2]
[374005054,1753177842749,-160.0,0.00018847,2]
[374005056,1753177842759,-839.90542673,0.00018847,2]
[374005058,1753177842768,-476.60259688,0.00018847,2]
[374005060,1753177842778,-160.0,0.00018847,2]
[374005062,1753177842787,-231.06963584,0.00018847,2]
[374005064,1753177842796,-526.07605158,0.00018847,2]
[374005066,1753177842806,-160.0,0.00018847,2]
[374005068,1753177842815,-214.6393183,0.00018847,2]
[374005070,1753177842826,-215.80012421,0.00018847,2]
[374005072,1753177842836,-160.0,0.00018847,2]
[374005074,1753177842845,-12619.94447631,0.00018847,2]
[374005076,1753177842857,-1226.62211392,0.000189,2]
[374005078,1753177842867,-221.23383675,0.00018904,3]
[374005080,1753177842876,-3301.13242443,0.00019003,2]
[374005082,1753177842886,-646.58,0.00019044,3]
[374005084,1753177842895,-323.28,0.00019044,3]
[374005086,1753177842904,-498.43,0.00019053,2]
[374005088,1753177842914,-1232.02,0.00019054,2]
[374005090,1753177842923,-460.0,0.00019054,2]
[374005092,1753177842933,-460.35,0.00019054,2]
[374005094,1753177842942,-868.26,0.00019054,2]
[374005096,1753177842951,-460.0,0.00019054,2]
[374005098,1753177842961,-460.0,0.00019054,2]
[374005100,1753177842970,-460.0,0.00019054,2]
[374005102,1753177842980,-708.02,0.00019054,2]
[374005104,1753177842989,-460.0,0.00019054,2]
[374005106,1753177842998,-460.0,0.00019054,2]
[374005108,1753177843009,-460.0,0.00019054,2]
[374005110,1753177843019,-1392.11,0.00019054,2]
[374005112,1753177843028,-460.0,0.00019054,2]
[374005114,1753177843037,-460.0,0.00019054,2]
[374005116,1753177843047,-325.87,0.00019055,2]
[374005118,1753177843056,-1552.13,0.00019055,2]
[374005120,1753177843066,-834.77,0.00019055,2]
[374005122,1753177843075,-460.0,0.00019056,2]
[374005124,1753177843085,-910.97,0.00019056,2]
[374005126,1753177843095,-669.08,0.00019057,2]
[374005128,1753177843104,-460.0,0.00019057,2]
[374005130,1753177843114,-602.33,0.00019057,2]
[374005132,1753177843123,-2606.37,0.00019057,2]
[374005134,1753177843135,-187.038938,0.00019178,2]
[374005136,1753177843144,-7899.70560674,0.00019225,2]
[374005138,1753177843153,-14435.13148365,0.00019229,2]
[374005140,1753177843162,-360.0,0.00019254,2]
[374005142,1753177843171,-3301.13242443,0.00019279,2]
[374005144,1753177843181,-498.43,0.00019327,2]
[374005146,1753177843190,-1232.02,0.00019328,2]
[374005148,1753177843199,-299.43,0.00019328,2]
[374005151,1753177843208,-460.35,0.00019328,2]
[374005154,1753177843218,-868.26,0.00019328,2]
[374005157,1753177843228,-460.0,0.00019328,2]
[374005160,1753177843237,-460.0,0.00019328,2]
[374005163,1753177843247,-460.0,0.00019328,2]
[374005165,1753177843256,-460.0,0.00019328,2]
[374005167,1753177843265,-568.66,0.00019328,2]
[374005169,1753177843274,-460.0,0.00019328,2]
[374005171,1753177843283,-1392.11,0.00019328,2]
[374005173,1753177843293,-460.0,0.00019328,2]
[374005175,1753177843303,-460.0,0.00019328,2]
[374005177,1753177843312,-151.0,0.00019329,2]
[374005179,1753177843322,-151.0,0.00019329,2]
[374005181,1753177843331,-151.0,0.00019329,2]
[374005183,1753177843341,-1552.13,0.00019329,2]
[374005185,1753177843350,-834.77,0.00019329,2]
[374005187,1753177843360,-100000.0,0.00019329,2]
[374005189,1753177843369,-460.0,0.0001933,2]
[374005191,1753177843379,-910.97,0.0001933,2]
[374005193,1753177843388,-669.08,0.00019331,2]
[374005195,1753177843398,-460.0,0.00019331,2]
[374005197,1753177843407,-602.33,0.00019331,2]
[374005199,1753177843417,-2606.37,0.00019331,2]
[374005201,1753177843426,-500.17276481,0.00019373,2]
[374005203,1753177843436,-3301.13242443,0.00019555,2]
[374005205,1753177843445,-933.96077906,0.00019572,2]
[374005207,1753177843455,-498.43,0.00019601,2]
[374005209,1753177843464,-1232.02,0.00019602,2]
[374005211,1753177843474,-460.35,0.00019602,2]
[374005213,1753177843483,-868.26,0.00019602,2]
[374005215,1753177843492,-460.0,0.00019602,2]
[374005217,1753177843502,-460.0,0.00019602,2]
[374005219,1753177843512,-460.0,0.00019602,2]
[374005221,1753177843521,-460.0,0.00019602,2]
[374005223,1753177843530,-460.0,0.00019602,2]
[374005225,1753177843539,-1392.11,0.00019602,2]
[374005227,1753177843549,-460.0,0.00019602,2]